Cogmind - Beta 12 @@@ ROGUE MODE // 2023.09.21 @ 00:00:28 Player: Antsan Result: Destroyed by G-34 Mercenary with Small Laser Performance ------------- Evolutions (1) 500 Regions Visited (4) 800 Robots Destroyed (36) 180 Value Destroyed (978) 978 Prototype IDs (1) 20 Alien Tech Used (0) 0 Bonus (31) 31 TOTAL SCORE: 2509 Bonus ------- High Alert Combat Kills 31 Cogmind --------- Core Integrity 0/400 Matter 264/300 Energy 125/125 System Corruption 3% Temperature Cool (6) Movement Core (100) Ox1 Location -9/Storage Parts ------- > --- POWER (1) -------- Light Ion Engine > --- PROPULSION (3) --- (None) > --- UTILITY (3) ------ (None) > --- WEAPON (2) ------- Katana > --- INVENTORY (5) ---- Improved Ion Engine Peak State ------------ > --- POWER ------------ Light Nuclear Core > --- PROPULSION ------- Wheel Wheel Compact Wheel > --- UTILITY ---------- Core Shielding Hardened Light Armor Plating Hardened Light Armor Plating > --- WEAPON ----------- Light EM Pulse Cannon Advanced Beam Cannon > --- INVENTORY -------- Ion Engine Light Ion Engine Hover Unit Mining Laser Katana [Rating: 16] Favorites ----------- Power Light Nuclear Core Engine Ion Engine Power Core Light Nuclear Core Propulsion Wheel Wheel Wheel Hover Unit Hover Unit Flight Unit VTOL Module Utility Hardened Light Armor Plating Protection Hardened Light Armor Plating Weapon Light EM Pulse Cannon Energy Gun EM Pulse Gun Energy Cannon Light EM Pulse Cannon Ballistic Gun Makeshift Shrapnel Gun Special Weapon Mining Laser Slashing Weapon Katana Build | -11 -10 -10 -9 -9 ------- Run | Jun Mat Min Mat Sto Slots Evolved 2 | . . . 2 . Power . | . . . . . Propulsion 1 | . . . 1 . Utility 1 | . . . 1 . Weapon . | . . . . . Parts Attached 53 | 9 9 1 17 17 Power 10 | 5 1 . 3 1 Engine 9 | 5 1 . 2 1 Core 1 | . . . 1 . Reactor . | . . . . . Propulsion 13 | 2 4 . 4 3 Treads . | . . . . . Leg . | . . . . . Wheel 8 | 2 . . 4 2 Hover 3 | . 2 . . 1 Flight 2 | . 2 . . . Utility 7 | . 2 . . 5 Device . | . . . . . Storage . | . . . . . Processor . | . . . . . Hackware . | . . . . . Protection 7 | . 2 . . 5 Artifact . | . . . . . Weapon 23 | 2 2 1 10 8 Energy Gun 4 | 2 . . . 2 Energy Cannon 9 | . . . 6 3 Ballistic Gun 1 | . . 1 . . Ballistic Cannon . | . . . . . Launcher . | . . . . . Special Weapon 7 | . 2 . 3 2 Impact Weapon . | . . . . . Slashing Weapon 2 | . . . 1 1 Piercing Weapon . | . . . . . Special Melee Weapon . | . . . . . Unidentified Prototypes 1 | . . . 1 . Parts Lost 15 | . 4 . 2 9 Power 2 | . 1 . . 1 Propulsion 6 | . 1 . 1 4 Utility 3 | . . . . 3 Weapon 4 | . 2 . 1 1 Highest Loss Streak 6 | . 4 . 1 6 To Critical Strikes . | . . . . . Average Slot Usage (%) 74 | . 85 81 52 81 Engine 6 | . 14 14 9 1 Core 5 | . . . 1 9 Wheel 16 | . 5 . 11 24 Hover 3 | . 16 . . 1 Flight 5 | . 4 28 14 . Protection 17 | . 19 10 . 25 Energy Gun 4 | . 18 . . 1 Energy Cannon 9 | . . . 7 16 Special Weapon 3 | . 6 24 3 . Slashing Weapon 1 | . . . 2 1 Naked Turns . | . . . . . Heaviest Build 24 | 7 9 8 13 24 Greatest Support 36 | 26 26 8 36 36 Greatest Overweight (x) 7 | . 2 . 1 7 Average Overweight (x) . | . . . . . Largest Inventory Capacity 5 | 5 5 5 5 5 Average Capacity 5 | 5 5 5 5 5 Most Carried 5 | 1 3 4 5 5 Average Carried 3 | . 2 3 4 4 Final Capacity 5 | 5 5 5 5 5 Final Carried 5 | 1 3 4 5 1 Class Distribution -------------------- 78% | Mutant 21% | Sprinter Dominant Class ---------------- Mutant | -10/Materials Sprinter | -10/Mines Sprinter | -9/Materials Mutant | -9/Storage Resources | -11 -10 -10 -9 -9 ----------- Run | Jun Mat Min Mat Sto Matter Collected 758 | 226 97 26 199 210 Remotely . | . . . . . Salvage Created 1346 | . 246 . 485 615 Parts 83 | . 22 . 28 33 Haulers Intercepted . | . . . . . Recyclers Shooed . | . . . . . Parts Field Recycled . | . . . . . Retrieved Matter . | . . . . . Parts Self-Destructed . | . . . . . Prevented . | . . . . . Kills | -11 -10 -10 -9 -9 ------- Run | Jun Mat Min Mat Sto Combat Hostiles Destroyed 28 | . 6 . 7 15 Melee 2 | . . . 1 1 Guns 6 | . 4 . 1 1 Cannons 18 | . . . 5 13 AOE 2 | . 2 . . . Classes Destroyed 9 | . 4 . 3 2 Worker 2 | . 1 . 1 . Builder 1 | . . . . 1 Recycler 1 | . . . 1 . Watcher 4 | . 2 . 1 1 Swarmer 8 | . 3 . . 5 Grunt 10 | . 3 . 4 3 Brawler 1 | . . . . 1 Duelist 2 | . . . 1 1 Sentry 7 | . . . 2 5 Best Kill Streak 7 | . 7 . 5 4 Combat Bots Only 6 | . 6 . 3 4 Max Kills in Single Turn 3 | . 3 . 1 2 Gunslinging . | . . . . . Exploded 2 | . 2 . . . Melee 1 | . . . 1 1 Uniques/NPCs Destroyed . | . . . . . Combat | -11 -10 -10 -9 -9 -------- Run | Jun Mat Min Mat Sto Damage Taken 1425 | . 252 14 294 865 Core 454 | . 45 . 70 339 Absorbed by Shields . | . . . . . Redirected to Shielding 35 | . 6 . . 29 Regen/Repaired (Parts) 46 | . . . . 46 Core Remaining (%) 91 | 100 . 82 . . Volleys Fired 69 | . 15 . 21 33 Largest 2 | . 2 . 2 2 Hottest 200 | . 200 . 124 136 Shots Fired 119 | . 29 . 28 62 Gun 33 | . 27 . 2 4 Cannon 83 | . . . 25 58 Launcher . | . . . . . Special 3 | . 2 . 1 . Kinetic 2 | . . . 2 . Thermal 70 | . 15 . 7 48 Explosive . | . . . . . Electromagnetic 47 | . 14 . 19 14 Robot Hit Streak 6 | . 3 . 6 5 Robot Miss Streak 3 | . 3 . 1 3 Penetration Max . | . . . . . Secondary Targets . | . . . . . Shots Hit Robots 75 | . 13 . 31 31 Core Hits 40 | . 10 . 11 19 Critical Kills . | . . . . . Critical Parts Destroyed . | . . . . . Critical Strikes . | . . . . . Melee Attacks 19 | . . . 17 2 Impact . | . . . . . Slashing 19 | . . . 17 2 Piercing . | . . . . . Sneak Attacks 3 | . . . 3 . Combat Hostiles 1 | . . . 1 . Follow-up Attacks . | . . . . . Damage Inflicted 1897 | . 324 . 881 692 Guns 235 | . 171 . 37 27 Cannons 1032 | . . . 395 637 Explosions 129 | . 129 . . . Melee 449 | . . . 449 . Ramming 28 | . . . . 28 Kinetic 37 | . . . 37 . Thermal 828 | . 203 . 82 543 Explosive . | . . . . . Electromagnetic 555 | . 121 . 313 121 Impact . | . . . . . Slashing 449 | . . . 449 . Piercing . | . . . . . Highest Corruption 3 | . . . . 3 Average Corruption 1 | . . . . 1 Corruption Purged . | . . . . . Corruption Blocked . | . . . . . Effects 5 | . . . . 5 Message Errors 1 | . . . . 1 Matter Fused 2 | . . . . 2 Heat Flow Errors 1 | . . . . 1 Energy Discharges 1 | . . . . 1 Overload Shots . | . . . . . Overflow Damage 85 | . 50 . 35 . Projectiles . | . . . . . Explosions 50 | . 50 . . . Melee 35 | . . . 35 . Knockbacks . | . . . . . Impact . | . . . . . Kinetic . | . . . . . Secondary . | . . . . . Self-Inflicted Damage 65 | . 54 . . 11 Shots 1 | . 1 . . . Rammed 15 | . . . . 15 Targets Rammed 15 | . . . . 15 Kicked . | . . . . . Crushed . | . . . . . Highest Temperature 1117 | . 333 . 183 1117 Average Temperature 259 | . 103 . 57 349 Received Heat Transfer 330 | . 60 9 147 114 Effects 68 | . . . . 68 Shutdowns 11 | . . . . 11 Energy Bleed 13 | . . . . 13 Interference 4 | . . . . 4 Matter Decay 3 | . . . . 3 Short Circuit 5 | . . . . 5 Damage (minor) 11 | . . . . 11 Damage (major) 18 | . . . . 18 Damage (core) 3 | . . . . 3 Siege Activations . | . . . . . Robots Corrupted . | . . . . . Combat Hostiles . | . . . . . Parts Fried . | . . . . . Impact Corruptions . | . . . . . Robots Melted . | . . . . . Combat Hostiles . | . . . . . Parts Melted 1 | . . . . 1 Heat Transferred 1445 | . 298 . 148 999 Parts Sabotaged . | . . . . . Parts Stolen . | . . . . . Parts Stripped . | . . . . . Power Chain Reactions 1 | . 1 . . . Missiles Intercepted . | . . . . . Alert | -11 -10 -10 -9 -9 ------- Run | Jun Mat Min Mat Sto Peak Influence 488 | . 152 103 297 488 Initial 125 | . . 58 39 125 Average 203 | . 74 85 145 316 Maximum Alert Level 2 | . . . 1 2 Low Security (%) 55 | 100 100 100 74 18 Level 1 39 | . . . 25 69 Level 2 5 | . . . . 11 Level 3 . | . . . . . Level 4 . | . . . . . Level 5 . | . . . . . High Security . | . . . . . Max Security . | . . . . . Squads Dispatched 5 | . 2 . . 3 Investigation 2 | . 1 . . 1 Extermination . | . . . . . Reinforcement 1 | . 1 . . . Assault . | . . . . . Garrison 2 | . . . . 2 Intercept . | . . . . . Searches Triggered . | . . . . . Construction Impeded . | . . . . . Haulers Reinforced . | . . . . . Active Scanning Responses . | . . . . . Cargo Convoy Interrupts . | . . . . . Stealth | -11 -10 -10 -9 -9 --------- Run | Jun Mat Min Mat Sto Distress Signals 4 | . . . 2 2 Communications Jammed . | . . . . . Distress Signals . | . . . . . Times Spotted 48 | . 9 2 17 20 Peak Tracking Total 5 | . 5 2 3 4 Tactical Retreats 6 | . . 1 4 1 Traps | -11 -10 -10 -9 -9 ------- Run | Jun Mat Min Mat Sto Traps Triggered 2 | . . . . 2 Indirectly . | . . . . . Trap Hack Attempts . | . . . . . Triggered . | . . . . . Disarmed . | . . . . . Reprogrammed . | . . . . . Reused . | . . . . . Traps Extracted . | . . . . . Installed . | . . . . . Triggered . | . . . . . Machines | -11 -10 -10 -9 -9 ---------- Run | Jun Mat Min Mat Sto Machines Disabled 1 | . . . 1 . Max in Single Turn 1 | . . . 1 . Garrison Access 1 | . . . . 1 Machines Repaired . | . . . . . Machines Sabotaged . | . . . . . Overloaded Fab Kills . | . . . . . Hacking | -11 -10 -10 -9 -9 --------- Run | Jun Mat Min Mat Sto Machines Accessed 8 | . 2 . 2 4 Terminals 6 | . 2 . 2 2 Fabricators . | . . . . . Repair Stations 1 | . . . . 1 Recycling Units . | . . . . . Scanalyzers . | . . . . . Garrison Access 1 | . . . . 1 Total Hacks 24 | . 6 . 6 12 Successful 13 | . 1 . 5 7 Failed 11 | . 5 . 1 5 Catastrophic 1 | . . . . 1 Database Lockouts . | . . . . . Manual 3 | . . . 2 1 Terminals 17 | . 6 . 6 5 Fabricators . | . . . . . Repair Stations 5 | . . . . 5 Recycling Units . | . . . . . Scanalyzers . | . . . . . Garrison Access 2 | . . . . 2 Terminal Hacks 8 | . 1 . 5 2 Record 2 | . . . 2 . Open Door 1 | . . . . 1 Alert Level 2 | . . . 2 . Unreport Threat 1 | . . . 1 . Locate Traps 2 | . 1 . . 1 Fabricator Hacks . | . . . . . Repair Station Hacks 4 | . . . . 4 Scan Component 2 | . . . . 2 Repair 2 | . . . . 2 Recycling Unit Hacks . | . . . . . Scanalyzer . | . . . . . Garrison Access Hacks 1 | . . . . 1 Seal Access 1 | . . . . 1 Unauthorized Hacks . | . . . . . Terminals . | . . . . . Fabricators . | . . . . . Repair Stations . | . . . . . Recycling Units . | . . . . . Scanalyzers . | . . . . . Garrison Access . | . . . . . Data Cores Recovered . | . . . . . Used . | . . . . . Hacking Detections 7 | . 2 . 2 3 Full Trace Events 2 | . 1 . . 1 Feedback Events . | . . . . . Feedback Blocked . | . . . . . Robot Schematics Acquired . | . . . . . Robots Built . | . . . . . Authchips . | . . . . . Time . | . . . . . Total Robot Build Rating . | . . . . . Part Schematics Acquired . | . . . . . Parts Built . | . . . . . Authchips . | . . . . . Time . | . . . . . Total Part Build Rating . | . . . . . Parts Repaired 2 | . . . . 2 Time 77 | . . . . 77 Parts Recycled . | . . . . . Recycled Matter . | . . . . . Retrieved Matter . | . . . . . Retrieved Components . | . . . . . Parts Scanalyzed . | . . . . . Part Schematics Acquired . | . . . . . Parts Damaged . | . . . . . Bothacking | -11 -10 -10 -9 -9 ------------ Run | Jun Mat Min Mat Sto Used RIF Installer . | . . . . . Robots Hacked . | . . . . . Non-combat . | . . . . . Combat . | . . . . . Robot Hacks Applied . | . . . . . Relay Couplers Released . | . . . . . Fabnet Peak Effective % . | . . . . . Robots Rewired . | . . . . . Allies Hacked . | . . . . . Hacks Repelled . | . . . . . Allies | -11 -10 -10 -9 -9 -------- Run | Jun Mat Min Mat Sto Total Allies 3 | . . 3 . . Largest Group 3 | . . 3 . . Highest-Rated Group 40 | . . 40 . . Highest-Rated Ally 16 | . . 16 . . Total Orders 1 | . . 1 . . GUARD 1 | . . 1 . . Ally Attacks . | . . . . . Total Damage . | . . . . . Kills . | . . . . . Allies Corrupted . | . . . . . Allies Melted . | . . . . . Intel | -11 -10 -10 -9 -9 ------- Run | Jun Mat Min Mat Sto Robot Analysis Total . | . . . . . Derelict Logs Recovered 1 | . . 1 . . Drone Launches . | . . . . . Drone Recoveries . | . . . . . Exploration | -11 -10 -10 -9 -9 ------------- Run | Jun Mat Min Mat Sto Turns Passed 1140 | 63 206 48 280 543 Spaces Moved 1046 | 56 211 139 243 397 Core 45 | 1 . . . 44 Treads . | . . . . . Legs . | . . . . . Wheels 486 | 55 39 . 96 296 Hover 181 | . 124 . . 57 Flight 334 | . 48 139 147 . Fastest Speed 32 | 50 32 32 32 50 Average Speed 69 | 88 66 32 54 91 Slowest Speed 400 | 90 195 32 112 400 Overloaded Moves . | . . . . . Propulsion Burnouts . | . . . . . Robots Hopped . | . . . . . Cave-ins Triggered . | . . . . . Exploration Rate (%) 35 | 4 33 58 28 52 Regions Visited 4 Branch Regions 2 Pre-discovered Areas . | . . . . . Known Exits Taken . | . . . . . Unknown Exits Taken 4 | 1 1 1 1 . Scrap Searched 1 | . . 1 . . Spaces Dug . | . . . . . Terrain Destroyed 3 | . 2 . 1 . Melee . | . . . . . Projectile 1 | . . . 1 . AOE 2 | . 2 . . . Terrain Rammed . | . . . . . Walls Destroyed . | . . . . . Machines Disabled . | . . . . . Actions | -11 -10 -10 -9 -9 --------- Run | Jun Mat Min Mat Sto Total 1283 | 64 240 141 331 507 Wait 62 | . 2 . 28 32 Move 1042 | 55 210 138 242 397 Hop . | . . . . . Pick Up 8 | . 3 1 1 3 Fast Attach 19 | 5 5 . 3 6 Attach 9 | . 1 . 4 4 Detach 1 | . . . 1 . Swap 25 | 4 3 1 10 7 Drop 14 | . 1 1 4 8 Fire 69 | . 15 . 21 33 Melee 19 | . . . 17 2 Ram 15 | . . . . 15 Kick . | . . . . . Crush . | . . . . . Escape Stasis . | . . . . . Rewire . | . . . . . Trap . | . . . . . Miscellaneous . | . . . . . Route ------- -11/Junkyard -10/Materials -10/Mines -9/Materials (discovered 3 exits: [*Mat] / [*Min] / *Sto) -9/Storage History --------- Turn | Location | Event 23 | -11/Junkyard | Discovered new exit (range 15) 64 | -11/Junkyard | Entered Materials 233 | -10/Materials | Lost 4 parts (1p1n2w) 266 | -10/Materials | Discovered new exit (range 13) 270 | -10/Materials | Entered Mines 289 | -10/Mines | Assisted by bots powering up and referring to "LRC-V3" 298 | -10/Mines | Learned 2 Materials zone layouts 301 | -10/Mines | A weapon hastily lodged in a ceiling crevice suddenly fell to the ground 316 | -10/Mines | Discovered new exit (range 6) 318 | -10/Mines | Entered Materials 318 | -9/Materials | Evolved 2 slots: Propulsion x1, Utility x1 493 | -9/Materials | Discovered new exit (range 16) 504 | -9/Materials | Met 8R-AWN 570 | -9/Materials | Discovered new exit (range 16) 596 | -9/Materials | Discovered new exit (range 9) 598 | -9/Materials | Entered Storage 783 | -9/Storage | Build established: Mutant 786 | -9/Storage | Repaired Com. Wheel 837 | -9/Storage | Repaired Adv. Beam Cannon 937 | -9/Storage | Garrison activated, responded to threat 1044 | -9/Storage | Core integrity fell below 50% 1087 | -9/Storage | Lost 6 parts (1p1n3u1w) 1094 | -9/Storage | Core integrity fell below 20% 1141 | -9/Storage | Destroyed by G-34 Mercenary with Small Laser Last Messages --------------- Slammed into S-10 Pest. Lgt. Nuclear Core destroyed. Slammed into S-10 Pest. S-10 Pest destroyed. [Achievement: Fist Fight] Dropped Broken Wheel. Dropped Broken Particle Cannon. Dropped Broken Particle Gun. Connecting with Garrison Access... >>Seal Access door sealed. System corrupted: Matter fused (-5). System corrupted: Energy discharge (-42). W-16 Scout sends out distress signal. System corrupted: Heat flow error (+238). Hover Unit destroyed. System corrupted: Matter fused (-6). R-06 Scavenger collects Broken Wheel. K-01 Serf collects debris. R-06 Scavenger collects Broken Particle Cannon. Map ----- +----------------------------------------------------+ | ?????????????????????????????????????????????????# | | ?????????????????????????????????????????????????# | | ????????????????????????????????????????########## | | ????????????????????????????????????????# """ # | | ????????????????????????????????????????# "R" # | | ????????????????????????????????????????# " " # | | ??????????????????#######???????????????# [# | | ??????????????????# #???????????????# %/ | | ??????????????????# #####???????????#""" * # | | ??????????????????# # ##########??#""" # | | ??????????????????# # # #??#""" # | | ??????????????????# # # #??# # | | ??????????????????# # # #??####### ## | | ??????????????????# # # #????????#### | | ??????????????????# + + #???????????# | | ??????????????????# # # #???????????# | | ???????????##+##### # # #???????????# | | ???????????# / / # #???????????# | | ???????????# #### # # #??########## | | ???????????#????######### ##+##+#####?# # | | ????????????????# #?# ###[### """ # | | ????????????????# % #?# ggY #[!% # """ # | | ????????????????# #?# #!%%[[# """ # | | ????????????????# #?# #!%%==# # | | ????????????????# ! #?# #=""" # """ + | | ????????????????# ###@ # !G" # """ # | | ????????????????# + r """ # """ # | | ????????????????# ] # w #! # # | | ????????????????# [+ ################ | | ????????????????+ ####+###+## #???# # | | ????????????????#[ # ## #???# """ """ # | | ????????????????# ]# """ ##%#???# """ """ + | | ????????????????####### "R ##%##??# """ """ # | | ??????????????????????# """ # % #### # | | ??????????????????????# # % + ## | | ??????????????????????# # #### | # | | ??????????????????????# ##+##### #" | | ??????????????????????# ]] %# [ ############" | | ??????????????????????# ]% # #??????????#" | | ??????????????????????######## # !#??????????# | | ?????????????????????????????### ! #??????????#" | | ???????????????????????????????# #??????????#" | | ???????????????????????????????#] #??????????#" | | ???????????????????????????????# #??????????# | | ???????????????????????????????#######??????????## | | ?????????????????????????????????????????????????? | | ?????????????????????????????????????????????????? | | ?????????????????????????????????????????????????? | | | | | +----------------------------------------------------+ Best States ------------- Heat Dissipation 28 Energy Generation 14 Energy Capacity 250 Matter Stores 300 Matter Capacity 300 Sight Range 16 Terrain Scan Density 10 Armor Coverage 300 Core Shielding 20 Evasion (%) 63 Item Schematics ----------------- None Robot Schematics ------------------ None Fabricated ------------ Nothing Alien Tech Used ----------------- None Achievements -------------- Everything Is Under Control Fist Fight One Hack Too Far Part-time Mechanic Challenges ------------ None Game ------ Seed VisualSkeletonNetwork Manual? 0 Play Time 00:38:40 Cumulative 7.3 hours Start 2023.09.20 @ 23:22:43 End 2023.09.21 @ 00:00:28 Sessions 1 Manual Loads 0 Difficulty Rogue Special Mode None Game No. 11 Rogue 11 Adventurer 0 Explorer 0 Win Type - Total 0 Types 0/0/0/0/0/0/0/0/0 Lore% 15 Gallery% 11 Achievement% 13 Wizard Run 0 Options --------- ASCII 1 Keyboard 0 Movement Numpad Keybinds 0 Fullscreen 2 Font 18/CogNarrow Map View 76x50 Tactical HUD 0 Map Filters NONE Filters NONE Steam 1 RUN: f49144fc-aa0b-4ad4-a95c-eb4235182da6